bitfinex-derivatives/quotes_SOLF0:USTF0_20250415
["timestamp","ask_amount","ask_price","bid_price","bid_amount"]
[1744684637735,0.05930349,128.27,128.22,2.0346]
[1744684637924,0.05930349,128.27,128.23,9.22586066]
[1744684638127,0.05930349,128.27,128.22,2.0346]
[1744684639033,7.7981,128.26,128.22,2.0346]
[1744684642237,0.05930349,128.27,128.2,31.38]
[1744684642535,0.05660453,128.25,128.23,13.6010571]
[1744684642740,7.7954,128.31,128.24,31.4]
[1744684643232,0.05394044,128.29,128.25,7.7982]
[1744684643733,0.05394044,128.29,128.24,31.4]
[1744684644233,7.85054044,128.29,128.24,31.4]
[1744684644436,7.85054044,128.29,128.24,39.1991]
[1744684645344,0.05394044,128.29,128.24,31.4]
[1744684645533,0.05394044,128.29,128.24,35.6652]
[1744684645735,0.05394044,128.29,128.28,7.7968]
[1744684646032,0.05394044,128.29,128.24,35.6652]
[1744684646334,0.05394044,128.29,128.27,7.7969]
[1744684646538,0.05394044,128.29,128.24,35.6652]
[1744684647139,0.05394044,128.29,128.27,7.7972]
[1744684647540,0.05394044,128.29,128.24,35.6652]
[1744684647735,2.1192,128.35,128.24,35.6652]
[1744684647942,15.7535571,128.38,128.27,13.6010571]
[1744684648235,7.7923,128.36,128.28,34.86948368]
[1744684648443,15.7535571,128.38,128.32,7.7939]
[1744684648636,7.7915,128.37,128.32,7.7939]
[1744684648839,7.7915,128.37,128.29,13.6010571]
[1744684649045,0.04910055,128.36,128.34,7.7927]
[1744684649742,0.04910055,128.36,128.33,0.05394044]
[1744684650843,0.04910055,128.36,128.34,7.793]
[1744684651249,0.04910055,128.36,128.35,7.7925]
[1744684651548,45.0010571,128.48,128.35,13.6010571]
[1744684651839,13.6010571,128.48,128.38,13.6010571]
[1744684652045,45.0010571,128.48,128.36,49.1791571]
[1744684652247,39.1851,128.48,128.42,7.7881]
[1744684652443,31.4,128.48,128.42,39.1881]
[1744684652637,0.05363663,128.46,128.44,0.05099484]
[1744684659544,7.7871,128.44,128.39,592.08]
[1744684659744,13.6010571,128.47,128.39,592.08]
[1744684660550,0.05912205,128.44,128.42,0.05204615]
[1744684661241,0.05912205,128.44,128.43,31.32]
[1744684661448,31.32,128.52,128.43,31.32]
[1744684662447,0.05319231,128.49,128.46,0.05337399]
[1744684663346,0.05319231,128.49,128.46,7.83907399]
[1744684663553,0.05319231,128.49,128.46,0.05337399]
[1744684664153,7.83749231,128.49,128.46,0.05337399]
[1744684664454,0.05319231,128.49,128.46,0.05337399]
[1744684665153,7.83729231,128.49,128.46,0.05337399]
[1744684665453,0.05319231,128.49,128.46,0.05337399]
[1744684665654,7.83749231,128.49,128.46,0.05337399]
[1744684666760,7.7848,128.48,128.46,0.05337399]
[1744684667255,7.83749231,128.49,128.46,0.05337399]
[1744684668757,7.7847,128.48,128.46,0.05337399]
[1744684668961,13.65424941,128.49,128.46,0.05337399]
[1744684669261,13.6010571,128.47,128.4,31.3]
[1744684669858,7.7863,128.46,128.42,7.7883]
[1744684670061,7.7863,128.46,128.4,31.3]
[1744684670062,33.3969,128.48,128.4,31.3]
[1744684670358,0.05231337,128.45,128.43,0.04942838]
[1744684671758,401.9010571,128.51,128.43,0.04942838]
[1744684671759,15.6618571,128.53,128.44,31.3]
[1744684671959,15.6618571,128.53,128.45,2.153]
[1744684672459,7.7832,128.51,128.47,7.7849]
[1744684672759,0.05433302,128.5,128.48,0.05907573]
[1744684673558,7.83793302,128.5,128.48,0.05907573]
[1744684674162,0.05433302,128.5,128.48,0.05907573]
[1744684675049,13.6010571,128.49,128.48,0.05907573]
[1744684675253,7.7865,128.45,128.44,31.3]
[1744684675756,7.7865,128.45,128.4,2.0188]
[1744684675757,7.7865,128.45,128.41,31.3]
[1744684676253,0.05024071,128.44,128.42,7.83719368]
[1744684676461,7.7861,128.46,128.42,7.83719368]
[1744684676659,0.05239197,128.44,128.42,7.83719368]
[1744684676855,0.05239197,128.44,128.42,0.04899368]
[1744684678059,7.83949197,128.44,128.42,0.04899368]
[1744684678459,0.05239197,128.44,128.42,0.04899368]
[1744684679559,0.05239197,128.44,128.43,7.7877]
[1744684680359,0.05239197,128.44,128.42,7.83709368]
[1744684680661,0.05239197,128.44,128.43,7.7877]
[1744684680855,44.9010571,128.51,128.42,0.04899368]
[1744684681052,31.3,128.51,128.41,31.3]
[1744684681556,31.3,128.51,128.45,7.7861]
[1744684681749,31.3,128.51,128.45,31.3]
[1744684681951,0.04927118,128.49,128.47,0.05134892]
[1744684682458,7.7847,128.48,128.47,0.05134892]
[1744684683464,7.83357118,128.49,128.47,0.05134892]
[1744684686764,7.7847,128.48,128.47,0.05134892]
[1744684687066,0.04927118,128.49,128.47,0.05134892]
[1744684687266,0.04927118,128.49,128.48,7.7847]
[1744684688070,2.1074,128.54,128.47,0.05134892]
[1744684688464,7.782,128.53,128.47,0.05134892]
[1744684688768,7.782,128.53,128.49,7.7837]
[1744684688968,9.8888,128.54,128.5,31.12]
[1744684689166,0.05646565,128.52,128.5,31.17934339]
[1744684689365,401.7210571,128.57,128.5,31.17934339]
[1744684689568,370.6010571,128.57,128.51,7.7828]
[1744684689766,0.05031371,128.55,128.5,31.12]
[1744684689967,0.05031371,128.55,128.53,0.05651553]
[1744684692170,7.83131371,128.55,128.53,0.05651553]
[1744684692371,0.05031371,128.55,128.53,0.05651553]
[1744684692672,7.781,128.54,128.53,0.05651553]
[1744684692868,0.05031371,128.55,128.53,0.05651553]
[1744684693564,13.65137081,128.55,128.53,0.05651553]
[1744684693965,13.65137081,128.55,128.46,2.0038]
[1744684694171,13.6010571,128.5,128.43,7.7876]
[1744684694368,13.6010571,128.48,128.43,7.7876]
[1744684694764,13.6010571,128.48,128.44,7.787]
[1744684695066,2.1798,128.49,128.44,7.787]
[1744684695266,0.05971203,128.47,128.45,0.050299]
[1744684695673,0.05971203,128.47,128.45,31.150299]
[1744684696776,0.05971203,128.47,128.45,0.050299]
[1744684699677,7.7859,128.46,128.45,0.050299]
[1744684701374,7.84521203,128.47,128.45,0.050299]
[1744684703772,7.7859,128.46,128.45,0.050299]
[1744684704071,0.05971203,128.47,128.45,0.050299]
[1744684704578,7.84501203,128.47,128.45,0.050299]
[1744684706481,0.05971203,128.47,128.45,0.050299]
[1744684708176,7.84501203,128.47,128.45,0.050299]
[1744684709582,0.05971203,128.47,128.45,0.050299]
[1744684709779,0.05971203,128.47,128.46,31.12]
[1744684710482,4.1775,128.53,128.46,39.62536134]
[1744684710784,10.63576134,128.56,128.46,46.05026134]
[1744684711180,7.7826,128.52,128.47,7.7849]
[1744684711682,0.05457984,128.51,128.48,0.049763]
[1744684712983,7.7838,128.5,128.48,0.049763]
[1744684716079,7.83767984,128.51,128.48,0.049763]
[1744684716284,0.05457984,128.51,128.48,0.049763]
[1744684717588,7.7835,128.5,128.48,0.049763]
[1744684717887,0.05457984,128.51,128.48,0.049763]
[1744684718185,0.05457984,128.51,128.49,30.68]
[1744684719685,0.05457984,128.51,128.48,0.049763]
[1744684720791,7.7839,128.5,128.48,0.049763]
[1744684721589,7.7841,128.49,128.48,0.049763]
[1744684726298,0.05457984,128.51,128.48,0.049763]
[1744684726688,0.05457984,128.51,128.5,7.7835]
[1744684726889,357.0,128.56,128.49,39.18536134]
[1744684727090,8.50536134,128.58,128.51,8.50536134]
[1744684727290,8.50536134,128.58,128.52,30.68]
[1744684727685,8.50536134,128.56,128.52,30.68]
[1744684727892,7.7816,128.53,128.52,30.68]
[1744684729095,0.05285928,128.55,128.52,30.68]
[1744684729096,7.7813,128.54,128.52,30.68]
[1744684729300,0.05285928,128.55,128.52,30.68]
[1744684729697,7.781,128.54,128.52,30.68]
[1744684729996,0.05285928,128.55,128.52,30.68]
[1744684730997,7.781,128.54,128.52,30.68]
[1744684731391,0.05285928,128.55,128.52,30.68]
[1744684731790,0.05285928,128.55,128.51,0.05905508]
[1744684732300,7.7822,128.52,128.51,0.05905508]
[1744684732593,7.7839,128.5,128.46,30.68]
[1744684732799,7.7839,128.5,128.46,38.4656]
[1744684732995,7.7839,128.5,128.46,30.68]
[1744684733699,0.05754077,128.49,128.47,0.05164167]
[1744684734201,0.05754077,128.49,128.47,7.83674167]
[1744684734701,0.05754077,128.49,128.48,7.7847]
[1744684735299,8.50536134,128.54,128.48,2.0796]
[1744684735499,7.782,128.53,128.49,38.464]
[1744684736302,0.05681486,128.52,128.5,0.05170709]
[1744684737500,0.05681486,128.52,128.51,7.7828]
[1744684737802,0.05681486,128.52,128.5,0.05170709]
[1744684738903,0.05681486,128.52,128.5,7.83510709]
[1744684740303,0.05681486,128.52,128.51,7.7828]
[1744684741305,7.7801,128.56,128.5,0.05170709]
[1744684741606,7.7808,128.55,128.5,0.05170709]
[1744684741907,8.50536134,128.58,128.51,7.7826]
[1744684742308,0.05962062,128.55,128.53,0.05284358]
[1744684742907,0.05962062,128.55,128.49,30.68]
[1744684742908,8.50536134,128.54,128.47,2.1392]
[1744684743111,8.50536134,128.5,128.46,30.68]
[1744684743408,7.7831,128.51,128.46,30.68]
[1744684743706,34.7973,128.53,128.46,30.68]
[1744684743907,11.8993,128.53,128.49,7.7837]
[1744684744106,0.05652036,128.51,128.48,0.05138794]
[1744684744309,0.05652036,128.51,128.49,30.68]
[1744684744813,2.0859,128.57,128.49,39.18536134]
[1744684745006,2.0859,128.57,128.49,41.30606134]
[1744684745403,7.7808,128.55,128.51,7.7825]
[1744684745604,2.0859,128.57,128.51,30.68]
[1744684745902,2.0859,128.57,128.53,0.0495851]
[1744684746103,0.04898993,128.55,128.53,0.0495851]
[1744684747508,0.04898993,128.55,128.53,7.8311851]
[1744684747807,0.04898993,128.55,128.53,0.0495851]
[1744684748808,7.82958993,128.55,128.53,0.0495851]
[1744684749003,0.04898993,128.55,128.54,30.56]
[1744684749205,6.3221,128.62,128.54,30.56]
[1744684749405,39.06536134,128.66,128.56,8.50536134]
[1744684749604,5.38022211,128.65,128.58,8.50536134]
[1744684749804,39.06536134,128.66,128.58,8.50536134]
[1744684750108,7.7748,128.65,128.6,7.7769]
[1744684750306,0.05127344,128.63,128.61,0.04941334]
[1744684755607,8.50536134,128.62,128.54,1.9818]
[1744684755905,8.50536134,128.6,128.54,1.9818]
[1744684756110,16.28286134,128.6,128.55,7.78]
[1744684756305,357.0,128.65,128.56,30.54]
[1744684756511,365.50536134,128.65,128.57,8.50536134]
[1744684756709,365.50536134,128.65,128.58,7.7781]
[1744684756909,0.05514155,128.62,128.6,0.05933224]
[1744684760815,7.7768,128.61,128.6,0.05933224]
[1744684761115,0.05514155,128.62,128.6,0.05933224]
[1744684761517,7.83174155,128.62,128.6,0.05933224]
[1744684762612,0.05514155,128.62,128.6,0.05933224]
[1744684762914,7.7768,128.61,128.6,0.05933224]
[1744684763219,7.83164155,128.62,128.6,0.05933224]
[1744684763815,7.7768,128.61,128.6,0.05933224]
[1744684765611,0.05514155,128.62,128.6,0.05933224]
[1744684767017,0.05514155,128.62,128.6,7.83633224]
[1744684767411,0.05514155,128.62,128.6,0.05933224]
[1744684767712,357.0,128.69,128.61,8.50536134]
[1744684767916,357.0,128.69,128.63,8.50536134]
[1744684768118,12.78346134,128.72,128.63,8.50536134]
[1744684768322,7.7723,128.69,128.63,8.50536134]
[1744684768514,12.78346134,128.72,128.63,8.50536134]
[1744684768819,0.04902515,128.69,128.66,0.05243083]
[1744684769019,0.04902515,128.69,128.67,8.50536134]
[1744684769225,8.50536134,128.76,128.67,8.50536134]
[1744684769517,8.50536134,128.76,128.66,30.54]
[1744684769518,8.50536134,128.74,128.66,30.54]
[1744684769715,8.50536134,128.72,128.66,30.54]
[1744684769919,8.50536134,128.7,128.66,30.54]
[1744684770121,8.50536134,128.68,128.62,30.54]
[1744684770320,0.05235738,128.66,128.64,0.05479067]
[1744684771419,0.05235738,128.66,128.65,30.54]
[1744684773825,0.05235738,128.66,128.65,38.3144]
[1744684775024,0.05235738,128.66,128.65,30.54]
[1744684779031,7.82615738,128.66,128.65,30.54]
[1744684779219,7.82615738,128.66,128.64,0.05479067]
[1744684779723,0.05235738,128.66,128.64,0.05479067]
[1744684780517,7.82615738,128.66,128.64,0.05479067]
[1744684782429,0.05235738,128.66,128.64,0.05479067]
[1744684785030,0.05235738,128.66,128.64,7.82969067]
[1744684785220,0.05235738,128.66,128.64,0.05479067]
[1744684786129,0.05235738,128.66,128.65,38.2944]
[1744684788129,7.7716,128.7,128.67,7.7731]
[1744684788331,357.0,128.72,128.65,30.52]
[1744684788632,7.7727,128.68,128.65,30.52]
[1744684789433,7.83180187,128.68,128.65,38.34753559]
[1744684791231,7.7735,128.67,128.65,30.57313559]
[1744684792131,7.83190187,128.68,128.65,30.57313559]
[1744684792531,0.05910187,128.68,128.65,38.34753559]
[1744684792826,0.05910187,128.68,128.65,30.57313559]
[1744684793225,0.05910187,128.68,128.67,7.7732]
[1744684793425,357.0,128.72,128.66,13.56586655]
[1744684793621,357.0,128.72,128.66,17.87286655]
[1744684793928,357.0,128.72,128.69,7.7716]
[1744684794226,13.56586655,128.76,128.7,30.52]
[1744684794431,2.0652,128.77,128.7,30.52]
[1744684794632,2.0652,128.77,128.73,0.05096746]
[1744684794633,0.05820472,128.75,128.73,0.05096746]
[1744684794833,0.05820472,128.75,128.74,30.52]
[1744684795232,365.46494039,128.81,128.74,30.52]
[1744684795432,8.46494039,128.79,128.74,30.52]
[1744684795732,8.46494039,128.77,128.75,30.52]
[1744684796325,7.7679,128.76,128.75,0.05460202]
[1744684796530,8.51652079,128.77,128.73,30.52]
[1744684796734,8.46494039,128.75,128.7,7.7709]
[1744684796930,8.46494039,128.75,128.7,30.52]
[1744684797135,10.55304039,128.75,128.7,30.52]
[1744684797635,0.0528747,128.74,128.71,0.05299815]
[1744684799731,7.7699,128.73,128.71,0.05299815]
[1744684800037,0.0528747,128.74,128.71,0.05299815]
[1744684800429,7.7701,128.72,128.71,0.05299815]
[1744684804034,7.8219747,128.74,128.71,7.82379815]
[1744684804438,0.0528747,128.74,128.71,0.05299815]
[1744684804938,7.7701,128.72,128.71,0.05299815]
[1744684805139,10.50484039,128.73,128.7,30.52]
[1744684805339,7.7708,128.71,128.7,30.52]
[1744684805938,10.50484039,128.73,128.68,30.52]
[1744684806138,10.50484039,128.73,128.69,0.05441648]
[1744684806331,7.7708,128.71,128.69,0.05441648]
[1744684806533,0.05918035,128.72,128.69,0.05441648]
[1744684806934,0.05918035,128.72,128.7,7.771]
[1744684807132,0.05918035,128.72,128.71,30.52]
[1744684807334,0.05918035,128.72,128.71,38.2908]
[1744684808337,0.05918035,128.72,128.71,30.52]
[1744684809941,7.82928035,128.72,128.71,30.52]
[1744684810437,0.05918035,128.72,128.71,30.5]
[1744684812143,0.05918035,128.72,128.71,38.2708]
[1744684813140,8.46494039,128.79,128.71,30.5]
[1744684813340,2.0538,128.8,128.73,8.46494039]
[1744684813544,9.8192,128.8,128.74,30.5]
[1744684813746,4.1637,128.81,128.74,30.5]
[1744684814043,11.9288,128.81,128.74,30.5]
[1744684814246,0.05583664,128.79,128.76,7.82218689]
[1744684814447,0.05583664,128.79,128.77,30.5]
[1744684816444,0.05583664,128.79,128.77,38.2669]
[1744684817148,0.05583664,128.79,128.78,7.7665]
[1744684817947,2.0994,128.85,128.82,7.7635]
[1744684818147,2.0994,128.85,128.82,38.2635]
[1744684818650,2.0994,128.85,128.83,7.7635]
[1744684819246,2.15647656,128.85,128.83,7.82243533]
[1744684820651,2.15647656,128.85,128.83,0.05893533]
[1744684820848,9.91927656,128.85,128.83,0.05893533]
[1744684821048,2.15647656,128.85,128.83,0.05893533]
[1744684821449,7.7629,128.84,128.83,0.05893533]
[1744684826056,7.7652,128.81,128.75,567.60494039]
[1744684826242,7.7652,128.81,128.76,30.48]
[1744684826442,8.46494039,128.83,128.78,7.7662]
[1744684826652,7.7644,128.82,128.78,7.7662]
[1744684827155,0.0493067,128.81,128.79,0.05496223]
[1744684827454,0.0493067,128.81,128.79,30.53496223]
[1744684830151,0.0493067,128.81,128.8,7.7653]
[1744684835957,7.7619,128.86,128.82,7.7637]
[1744684836158,7.7619,128.86,128.83,30.48]
[1744684836559,7.7624,128.85,128.83,30.48]
[1744684837062,7.81929735,128.85,128.83,30.53366724]
[1744684837761,7.7629,128.84,128.83,30.53366724]
[1744684837961,0.05689735,128.85,128.78,2.0573]
[1744684838163,8.46494039,128.84,128.79,30.46]
[1744684838558,7.7646,128.82,128.79,30.46]
[1744684838865,8.46494039,128.84,128.79,30.46]
[1744684839059,7.7646,128.82,128.8,0.05370337]
[1744684839557,0.05129967,128.83,128.8,0.05370337]
[1744684840159,7.81509967,128.83,128.8,0.05370337]
[1744684840460,7.81509967,128.83,128.8,7.81880337]
[1744684840662,0.05129967,128.83,128.8,0.05370337]
[1744684841663,7.81519967,128.83,128.8,7.81900337]
[1744684842060,0.05129967,128.83,128.8,7.81900337]
[1744684842358,0.05129967,128.83,128.8,0.05370337]
[1744684842763,7.7647,128.81,128.8,0.05370337]
[1744684842958,0.05129967,128.83,128.8,0.05370337]
[1744684843566,7.7645,128.82,128.8,0.05370337]
[1744684844064,7.81499967,128.83,128.8,7.81900337]
[1744684845764,7.7641,128.82,128.8,0.05370337]
[1744684846266,7.81509967,128.83,128.8,7.81900337]
[1744684849771,7.7642,128.82,128.8,0.05370337]
[1744684851272,7.7642,128.82,128.8,7.81900337]
[1744684852073,7.7642,128.82,128.8,0.05370337]
[1744684853467,5.46598395,128.83,128.8,0.05370337]
[1744684853670,5.41468428,128.89,128.82,5.41468428]
[1744684853875,5.41468428,128.89,128.84,5.41468428]
[1744684854064,5.41468428,128.88,128.83,35.87468428]
[1744684854270,7.7611,128.87,128.84,7.7626]
[1744684854772,7.7623,128.85,128.84,0.05081088]
[1744684855074,13.17698428,128.85,128.84,0.05081088]
[1744684855273,7.762,128.86,128.84,0.05081088]
[1744684856576,7.82099903,128.87,128.84,7.81341088]
[1744684856771,0.05969903,128.87,128.84,0.05081088]
[1744684857478,0.05969903,128.87,128.85,7.7622]
[1744684858079,7.82079903,128.87,128.84,7.81351088]
[1744684858275,8.51692994,128.87,128.84,0.05081088]
[1744684858675,7.7623,128.85,128.84,0.05081088]
[1744684859783,7.7639,128.83,128.78,2.0962]
[1744684859974,8.45723091,128.85,128.79,30.46]
[1744684860170,5.39083709,128.84,128.79,30.46]
[1744684860380,8.45723091,128.85,128.79,30.46]
[1744684860680,8.45723091,128.83,128.79,30.46]
[1744684860979,7.82429185,128.82,128.8,0.0509233]
[1744684862383,7.7647,128.81,128.8,0.0509233]
[1744684866077,0.05979185,128.82,128.8,0.0509233]
[1744684866483,40.95353091,128.89,128.8,8.50815421]
[1744684866683,7.7614,128.87,128.82,8.45723091]
[1744684866878,5.39423437,128.86,128.83,30.46]
[1744684867074,7.7614,128.87,128.83,30.46]
[1744684867279,10.46753091,128.91,128.83,30.46]
[1744684867482,5.39436196,128.9,128.83,32.5917]
[1744684867682,0.05026269,128.88,128.86,7.82030852]
[1744684867882,0.05026269,128.88,128.86,38.28030852]
[1744684868482,0.05026269,128.88,128.87,7.7611]
[1744684868679,0.05026269,128.88,128.86,30.51900852]
[1744684869183,0.05026269,128.88,128.86,38.28040852]
[1744684873188,32.6192,128.95,128.86,38.97623943]
[1744684873386,41.07643091,128.95,128.86,38.91723091]
[1744684873687,7.7579,128.93,128.89,7.7593]
[1744684873892,7.7579,128.93,128.9,30.44]
[1744684874284,7.80728098,128.93,128.9,30.49632897]
[1744684874688,0.04938098,128.93,128.9,30.49632897]
[1744684875190,0.04938098,128.93,128.9,0.05632897]
[1744684875487,8.50661189,128.93,128.9,0.05632897]
[1744684875786,7.7585,128.92,128.9,0.05632897]
[1744684875987,8.50661189,128.93,128.9,0.05632897]
[1744684876290,7.7584,128.92,128.9,0.05632897]
[1744684876476,8.50661189,128.93,128.9,0.05632897]
[1744684877286,8.45723091,128.91,128.86,30.44]
[1744684877889,7.7596,128.9,128.86,38.2017]
[1744684878490,0.05006977,128.89,128.87,7.81038973]
[1744684879790,0.05006977,128.89,128.87,0.04938973]
[1744684880890,7.81016977,128.89,128.87,0.04938973]
[1744684881292,0.05006977,128.89,128.87,0.04938973]
[1744684884197,7.7605,128.88,128.87,0.04938973]
[1744684884898,7.762,128.86,128.83,589.12]
[1744684885598,7.762,128.86,128.83,596.8835]
[1744684885893,7.82097807,128.86,128.83,596.93538092]
[1744684886093,8.45723091,128.84,128.83,0.05188092]
[1744684886597,7.7651,128.81,128.78,30.44]
[1744684886997,8.45723091,128.84,128.78,30.44]
[1744684886998,8.45723091,128.82,128.78,30.44]
[1744684887598,0.05760403,128.81,128.79,0.05876337]
[1744684888198,7.7657,128.8,128.79,0.05876337]
[1744684889797,7.82260403,128.81,128.79,0.05876337]
[1744684891198,0.05760403,128.81,128.79,7.82446337]
[1744684893600,7.82240403,128.81,128.79,0.05876337]
[1744684899306,7.7653,128.8,128.79,0.05876337]
[1744684899702,7.82240403,128.81,128.79,0.05876337]
[1744684901507,7.7653,128.8,128.79,0.05876337]
[1744684902806,7.82260403,128.81,128.79,0.05876337]
[1744684903807,0.05760403,128.81,128.79,0.05876337]
[1744684904305,0.05760403,128.81,128.8,30.42]
[1744684904504,357.0,128.85,128.8,38.87723091]
[1744684904699,8.45723091,128.88,128.8,38.87723091]
[1744684905607,7.81285623,128.85,128.83,0.05026599]
[1744684906713,7.7629,128.84,128.83,0.05026599]
[1744684907710,7.81265623,128.85,128.83,0.05026599]
[1744684908111,0.05015623,128.85,128.83,0.05026599]
[1744684908313,7.7629,128.84,128.83,0.05026599]
[1744684909014,7.81265623,128.85,128.83,0.05026599]
[1744684910116,7.7629,128.84,128.83,0.05026599]
[1744684916021,7.7647,128.81,128.8,30.42]
[1744684917424,7.81760321,128.82,128.8,30.42]
[1744684919425,7.7647,128.81,128.8,30.42]
[1744684920332,7.81780321,128.82,128.8,30.42]
[1744684921031,7.7647,128.81,128.8,30.42]
[1744684925231,7.81780321,128.82,128.8,30.42]
[1744684926830,7.7647,128.81,128.8,30.42]
[1744684928230,7.81770321,128.82,128.8,30.42]
[1744684928431,0.05340321,128.82,128.8,30.42]
[1744684929135,0.05340321,128.82,128.8,35.83294802]
[1744684929433,0.05340321,128.82,128.81,7.7647]
[1744684929734,0.05340321,128.82,128.8,30.42]
[1744684929927,5.46635123,128.82,128.8,30.42]
[1744684930333,7.7647,128.81,128.8,30.42]
[1744684930937,7.7653,128.8,128.79,0.0558864]
[1744684931435,0.05340321,128.82,128.8,7.765]
[1744684931835,0.05340321,128.82,128.8,30.4]
[1744684932536,7.81760321,128.82,128.8,30.4]
[1744684933343,0.05340321,128.82,128.8,30.4]
[1744684935438,0.05340321,128.82,128.8,38.1649]
[1744684938240,0.05340321,128.82,128.81,7.7647]
[1744684938446,8.46484389,128.88,128.8,30.4]
[1744684939041,8.46484389,128.86,128.8,30.4]
[1744684939442,0.05870638,128.84,128.82,0.04952736]
[1744684939847,7.7637,128.83,128.82,0.04952736]
[1744684940639,7.82180638,128.84,128.82,0.04952736]
[1744684942149,0.05870638,128.84,128.82,0.04952736]
[1744684942350,8.46484389,128.9,128.83,30.4]
[1744684942651,8.46484389,128.9,128.83,32.4835]
[1744684943255,7.7606,128.88,128.84,7.7626]
[1744684943440,7.81808746,128.88,128.84,7.7626]
[1744684943643,7.81808746,128.88,128.86,0.0522616]
[1744684943644,0.05748746,128.88,128.86,0.0522616]
[1744684945050,7.81828746,128.88,128.86,0.0522616]
[1744684947151,7.81828746,128.88,128.86,30.4522616]
[1744684947356,0.05748746,128.88,128.86,30.4522616]
[1744684948052,7.81818746,128.88,128.86,30.4522616]
[1744684949052,0.05748746,128.88,128.86,30.4522616]
[1744684949348,8.46484389,128.93,128.86,38.91710549]
[1744684949556,357.0,128.94,128.86,38.91710549]
[1744684949865,8.46484389,128.97,128.88,8.46484389]
[1744684950151,7.7567,128.95,128.89,34.4119]
[1744684950554,0.05919961,128.93,128.91,0.05015312]
[1744684950750,0.05919961,128.93,128.92,30.4]
[1744684951456,7.81669961,128.93,128.92,30.4]
[1744684956058,7.7581,128.92,128.91,0.05015312]
[1744684956253,13.16304289,128.92,128.91,0.05015312]
[1744684958460,0.05919961,128.93,128.91,5.45509601]
[1744684958659,0.05919961,128.93,128.92,30.38]
[1744684961265,7.81669961,128.93,128.92,30.38]
[1744684963373,0.05919961,128.93,128.92,30.38]
[1744684964671,357.0,128.99,128.92,38.82456629]
[1744684964872,365.44456629,128.99,128.92,32.3704]
[1744684965073,8.44456629,128.99,128.92,30.38]
[1744684965274,34.5641,129.03,128.92,30.38]
[1744684965474,8.44456629,128.99,128.92,30.38]
[1744684965770,0.05332629,128.97,128.94,0.05568234]
[1744684965976,0.05332629,128.97,128.92,30.38]
[1744684966177,0.05332629,128.97,128.94,0.05088989]
[1744684966377,7.7563,128.95,128.94,0.05088989]
[1744684966573,0.05332629,128.97,128.94,0.05088989]
[1744684967072,7.7561,128.96,128.94,0.05088989]
[1744684967768,7.7563,128.95,128.94,0.05088989]
[1744684967976,0.05332629,128.97,128.94,0.05088989]
[1744684968177,7.7559,128.96,128.94,0.05088989]
[1744684968572,0.05332629,128.97,128.94,0.05088989]
[1744684968772,7.80842629,128.97,128.95,30.34]
[1744684969481,0.05332629,128.97,128.95,30.34]
[1744684970183,7.80872629,128.97,128.95,30.34]
[1744684970778,7.7557,128.96,128.95,30.34]
[1744684971573,7.7563,128.95,128.94,0.05088989]
[1744684972481,0.05332629,128.97,128.94,0.05088989]
[1744684972681,0.05332629,128.97,128.95,30.34]
[1744684973281,0.05332629,128.97,128.94,0.05088989]
[1744684974182,7.756,128.96,128.94,0.05088989]
[1744684975181,7.7563,128.95,128.94,0.05088989]
[1744684981582,7.7559,128.96,128.94,0.05088989]
[1744684981785,0.05332629,128.97,128.94,0.05088989]
[1744684982187,0.05332629,128.97,128.95,30.34]
[1744684983192,5.45642495,128.97,128.95,30.34]
[1744684983392,7.7557,128.96,128.95,30.34]
[1744684983592,5.45642495,128.97,128.94,0.05088989]
[1744684983791,5.40309866,128.95,128.94,0.05088989]
[1744684983993,13.15939866,128.95,128.94,0.05088989]
[1744684984194,5.45642495,128.97,128.94,0.05088989]
[1744684984490,13.21172495,128.97,128.94,7.80768989]
[1744684984892,13.21172495,128.97,128.94,0.05088989]
[1744684985994,7.7558,128.96,128.94,0.05088989]
[1744684986294,5.45642495,128.97,128.94,0.05088989]
[1744684986491,7.7561,128.96,128.94,0.05088989]
[1744684988994,7.7563,128.95,128.94,0.05088989]
[1744684990696,13.15939866,128.95,128.94,0.05088989]
[1744684990995,7.7563,128.95,128.94,0.05088989]
[1744684992595,7.7558,128.96,128.94,0.05088989]
[1744684993101,7.7563,128.95,128.94,0.05088989]
[1744684994701,7.756,128.96,128.94,0.05088989]